Cogmind - Beta 13 @@@ ROGUE MODE // 2024.06.11 @ 17:24:28 Player: Kinga Result: Destroyed by S-27 Virus with Autogun Performance ------------- Evolutions (3) 1500 Regions Visited (6) 1200 Robots Destroyed (114) 570 Value Destroyed (3194) 3194 Prototype IDs (15) 300 Alien Tech Used (0) 0 Bonus (135) 135 TOTAL SCORE: 6899 Bonus ------- High Alert Combat Kills 135 Cogmind --------- Core Integrity 0/700 Matter 247/300 Energy 19/160 System Corruption 1% Temperature Cool (0) Movement Core (100) Ox1 Location -7/Lower Caves Parts ------- > --- POWER (1) -------- Light Nuclear Core > --- PROPULSION (4) --- (None) > --- UTILITY (6) ------ Small Storage Unit Advanced Weight Redist. System Transport Network Coupler Advanced Targeting Computer > --- WEAPON (2) ------- Chainsword > --- INVENTORY (8) ---- Light Nuclear Core Armored Wheel Advanced ECM Suite Improved Utility Shielding Improved Hacking Suite Long-range Tractor Beam Peak State ------------ > --- POWER ------------ Heavy Deuterium Engine > --- PROPULSION ------- Light Treads Medium Treads > --- UTILITY ---------- Large Storage Unit Improved Signal Interpreter Transport Network Coupler Transmission Jammer Improved Medium Armor Plating Improved Medium Armor Plating > --- WEAPON ----------- Cooled Pulse Rifle Precision Assault Rifle > --- INVENTORY -------- Light Nuclear Core Light Nuclear Core Micro Nuclear Core Armored Wheel Flight Unit Flight Unit Flight Unit Small Storage Unit Advanced Weight Redist. System Advanced ECM Suite Reaction Control System Improved Utility Shielding Long-range Tractor Beam Recalibrator Proton Missile Launcher [Rating: 41] Favorites ----------- Power Heavy Ion Engine Engine Heavy Ion Engine Power Core Micro Nuclear Core Propulsion Light Treads Treads Light Treads Leg Improved Carbon-fiber Leg Wheel Compact Wheel Flight Unit Flight Unit Utility Transport Network Coupler Device Improved Heat Sink Storage Large Storage Unit Processor Transport Network Coupler Protection Improved Medium Armor Plating Weapon Enhanced Autogun Energy Gun Cooled Pulse Rifle Energy Cannon Ion Cannon Ballistic Gun Enhanced Autogun Ballistic Cannon Flak Cannon Launcher Proton Missile Launcher Impact Weapon Heavy Flail Slashing Weapon Chainsword Build | -11 -10 -9 -8 -7 -7 -7 ------- Run | Yrd Mat Mat Mat Fac Low Low Slots Evolved 6 | . . 2 2 2 . . Power . | . . . . . . . Propulsion 2 | . . . 2 . . . Utility 4 | . . 2 . 2 . . Weapon . | . . . . . . . Parts Attached 99 | 7 6 10 35 38 . 3 Power 9 | 1 1 1 2 3 . 1 Engine 6 | 1 1 1 2 1 . . Core 3 | . . . . 2 . 1 Reactor . | . . . . . . . Propulsion 37 | 2 4 4 17 10 . . Treads 13 | . 2 . 4 7 . . Leg 4 | . . . 4 . . . Wheel 6 | 2 2 2 . . . . Hover . | . . . . . . . Flight 14 | . . 2 9 3 . . Utility 20 | 1 1 2 4 12 . . Device 9 | . 1 1 1 6 . . Storage 3 | 1 . 1 . 1 . . Processor 3 | . . . 1 2 . . Hackware . | . . . . . . . Protection 5 | . . . 2 3 . . Artifact . | . . . . . . . Weapon 33 | 3 . 3 12 13 . 2 Energy Gun 7 | 1 . 1 2 3 . . Energy Cannon 1 | . . . . 1 . . Ballistic Gun 10 | 2 . 1 5 2 . . Ballistic Cannon 2 | . . . 2 . . . Launcher 9 | . . 1 3 5 . . Special Weapon . | . . . . . . . Impact Weapon 1 | . . . . 1 . . Slashing Weapon 3 | . . . . 1 . 2 Piercing Weapon . | . . . . . . . Special Melee Weapon . | . . . . . . . Unidentified Prototypes 4 | . . . 2 2 . . Parts Lost 42 | . 3 8 8 17 1 5 Power 5 | . . 1 2 1 . 1 Propulsion 24 | . 3 4 5 9 . 3 Utility 5 | . . . . 3 1 1 Weapon 8 | . . 3 1 4 . . Highest Loss Streak 4 | . 1 4 3 3 1 3 To Critical Strikes . | . . . . . . . Average Slot Usage (%) 84 | . 84 70 91 82 90 50 Engine 6 | . 13 10 7 4 . . Core 1 | . . . . 2 7 5 Treads 14 | . 17 . 12 19 . . Leg 1 | . . . 6 . . . Wheel 1 | . 4 12 . . . . Flight 5 | . . 4 12 1 23 6 Device 12 | . 6 13 13 11 21 12 Storage 8 | . 14 11 9 7 7 7 Processor 10 | . . . 6 15 15 15 Protection 3 | . . . 4 3 . . Energy Gun 4 | . . . 7 5 . . Ballistic Gun 8 | . 28 16 5 6 . . Naked Turns . | . . . . . . . Heaviest Build 54 | 12 13 27 39 54 19 18 Greatest Support 80 | 32 40 32 80 80 21 21 Greatest Overweight (x) 7 | . . 2 7 1 . 1 Average Overweight (x) . | . . . . . . . Largest Inventory Capacity 15 | 8 8 15 15 15 8 8 Average Capacity 13 | 7 8 8 15 14 8 8 Most Carried 15 | 3 6 5 15 15 8 8 Average Carried 11 | 1 3 4 13 14 8 7 Final Capacity 15 | 8 8 15 15 8 8 8 Final Carried 15 | 3 5 4 15 8 8 6 Class Distribution -------------------- 72% | Scavenger-Mutant 27% | Mutant Dominant Class ---------------- Mutant | -10/Materials Mutant | -9/Materials Scavenger-Mutant | -8/Materials Scavenger-Mutant | -7/Factory Scavenger-Mutant | -7/Lower Caves Mutant | -7/Lower Caves Resources | -11 -10 -9 -8 -7 -7 -7 ----------- Run | Yrd Mat Mat Mat Fac Low Low Matter Collected 2494 | 269 151 21 1077 949 . 27 Remotely 100 | . . . . 100 . . Salvage Created 4036 | . 376 201 1391 1941 45 82 Parts 241 | . 22 24 84 100 5 6 Haulers Intercepted 10 | . . . 5 5 . . Recyclers Shooed 7 | . . . 2 5 . . Parts Field Recycled . | . . . . . . . Retrieved Matter . | . . . . . . . Parts Self-Destructed 8 | . . . . . 5 3 Prevented . | . . . . . . . Kills | -11 -10 -9 -8 -7 -7 -7 ------- Run | Yrd Mat Mat Mat Fac Low Low Combat Hostiles Destroyed 78 | . 8 9 25 32 1 3 Melee 4 | . . . . . 1 3 Guns 55 | . 8 5 14 28 . . Cannons 9 | . . . 9 . . . AOE 10 | . . 4 2 4 . . Classes Destroyed 12 | . 3 4 4 1 . . Worker 7 | . 1 . 4 2 . . Builder 4 | . . 2 . 2 . . Tunneler 1 | . . 1 . . . . Hauler 10 | . . . 5 5 . . Recycler 5 | . . . 2 3 . . Operator 3 | . 1 . 1 1 . . Watcher 6 | . . . 3 3 . . Swarmer 30 | . . 4 7 16 . 3 Grunt 28 | . 8 3 11 6 . . Sentry 9 | . . 2 4 3 . . Hunter 7 | . . . 3 4 . . Programmer 4 | . . . . 3 1 . Best Kill Streak 7 | . 4 7 6 6 1 2 Combat Bots Only 5 | . 3 4 5 4 1 2 Max Kills in Single Turn 4 | . 1 3 4 2 1 1 Gunslinging . | . . . . . . . Exploded 3 | . . 3 2 1 . . Melee 1 | . . . . . 1 1 Uniques/NPCs Destroyed . | . . . . . . . Combat | -11 -10 -9 -8 -7 -7 -7 -------- Run | Yrd Mat Mat Mat Fac Low Low Hostile Shots Fired 711 | . 72 71 139 351 10 68 Missed 226 | . 18 20 39 121 4 24 Damage Taken 5934 | . 684 538 1478 2454 97 683 Core 1270 | . 152 162 250 248 . 458 Absorbed by Shields . | . . . . . . . Redirected to Shielding 15 | . . . 15 . . . Core Remaining (%) 63 | 100 39 59 54 . . . Volleys Fired 329 | . 57 24 97 151 . . Largest 2 | . 2 2 2 2 . . Hottest 105 | . 40 50 86 105 . . Shots Fired 579 | . 114 31 174 260 . . Gun 512 | . 114 25 122 251 . . Cannon 50 | . . . 50 . . . Launcher 17 | . . 6 2 9 . . Special . | . . . . . . . Kinetic 425 | . 114 25 121 165 . . Thermal 137 | . . . 51 86 . . Explosive 6 | . . 6 . . . . Electromagnetic 11 | . . . 2 9 . . Robot Hit Streak 16 | . 14 6 15 16 . . Robot Miss Streak 8 | . 3 3 8 3 . . Penetration Max 1 | . . . 1 . . . Secondary Targets 5 | . 2 1 . 2 . . Max Gunslinging Chain 1 | . 1 1 . 1 . . Shots Hit Robots 419 | . 74 19 124 196 3 3 Core Hits 216 | . 24 16 94 78 1 3 Critical Kills 4 | . 2 . 2 . . . Critical Parts Destroyed 1 | . . . . 1 . . Critical Strikes 10 | . 2 . 4 3 1 . Burn 4 | . . . 2 2 . . Destroy 5 | . 2 . 2 1 . . Sever 1 | . . . . . 1 . Melee Attacks 12 | . . . . 3 4 5 Impact . | . . . . . . . Slashing 12 | . . . . 3 4 5 Piercing . | . . . . . . . Sneak Attacks 1 | . . . . . 1 . Combat Hostiles 1 | . . . . . 1 . Follow-up Attacks . | . . . . . . . Damage Inflicted 8119 | . 616 689 2292 4257 158 107 Guns 5775 | . 616 103 1281 3775 . . Cannons 795 | . . . 795 . . . Explosions 1263 | . . 586 207 470 . . Melee 265 | . . . . . 158 107 Ramming 21 | . . . 9 12 . . Kinetic 4636 | . 616 103 1539 2378 . . Thermal 2158 | . . 224 537 1397 . . Explosive 362 | . . 362 . . . . Electromagnetic 677 | . . . 207 470 . . Impact . | . . . . . . . Slashing 265 | . . . . . 158 107 Piercing . | . . . . . . . Highest Corruption 3 | . 1 . 3 1 1 1 Average Corruption 1 | . 1 . 2 1 1 1 Corruption Purged . | . . . . . . . Corruption Blocked . | . . . . . . . Effects 29 | . 5 . 19 4 1 . Message Errors 6 | . 2 . 2 2 . . Matter Fused 10 | . 1 . 8 . 1 . Heat Flow Errors 5 | . . . 4 1 . . Energy Discharges 2 | . . . 1 1 . . Parts Rejected 1 | . 1 . . . . . Parts Fused 1 | . 1 . . . . . Data Loss (minor) 1 | . . . 1 . . . Data Loss (major) 1 | . . . 1 . . . Misfires 1 | . . . 1 . . . Alerts 1 | . . . 1 . . . Overload Shots . | . . . . . . . Overflow Damage 94 | . . 59 . . 35 . Projectiles . | . . . . . . . Explosions 59 | . . 59 . . . . Melee 35 | . . . . . 35 . Knockbacks 23 | . . . 23 . . . Impact . | . . . . . . . Kinetic 21 | . . . 21 . . . Secondary 2 | . . . 2 . . . Self-Inflicted Damage . | . . . . . . . Shots . | . . . . . . . Rammed 6 | . . . 2 4 . . Targets Rammed 8 | . . . 3 5 . . Kicked 1 | . . . 1 . . . Crushed 1 | . . . . 1 . . Highest Temperature 260 | . 24 . 239 260 . . Average Temperature 30 | . 9 . 47 31 . . Received Heat Transfer 1362 | . 384 99 387 384 18 90 Siege Activations . | . . . . . . . Robots Corrupted . | . . . . . . . Combat Hostiles . | . . . . . . . Parts Fried 3 | . . . . 3 . . Impact Corruptions . | . . . . . . . Robots Melted . | . . . . . . . Combat Hostiles . | . . . . . . . Parts Melted 6 | . . . 1 5 . . Heat Transferred 4356 | . . 150 1366 2840 . . Parts Sabotaged . | . . . . . . . Parts Stolen . | . . . . . . . Parts Stripped . | . . . . . . . Power Chain Reactions . | . . . . . . . Alert | -11 -10 -9 -8 -7 -7 -7 ------- Run | Yrd Mat Mat Mat Fac Low Low Peak Influence 586 | . 269 364 484 586 . . Initial 219 | . . 40 153 219 . . Average 299 | . 109 128 314 354 . . Maximum Alert Level 2 | . 1 1 2 2 . . Low Security (%) 27 | 100 93 89 30 4 . . Level 1 46 | . 6 10 32 67 . . Level 2 25 | . . . 36 28 . . Level 3 . | . . . . . . . Level 4 . | . . . . . . . Level 5 . | . . . . . . . High Security . | . . . . . . . Max Security . | . . . . . . . Squads Dispatched 22 | . 3 3 6 10 . . Investigation 8 | . 2 1 1 4 . . Extermination 3 | . . . . 3 . . Reinforcement 11 | . 1 2 5 3 . . Assault . | . . . . . . . Garrison . | . . . . . . . Intercept . | . . . . . . . Searches Triggered . | . . . . . . . Construction Impeded 3 | . . . 2 1 . . Haulers Reinforced 1 | . . . . 1 . . Active Scanning Responses . | . . . . . . . Cargo Convoy Interrupts . | . . . . . . . Stealth | -11 -10 -9 -8 -7 -7 -7 --------- Run | Yrd Mat Mat Mat Fac Low Low Distress Signals 5 | . 1 . 2 2 . . Communications Jammed 3 | . . . . 3 . . Distress Signals 1 | . . . . 1 . . Times Spotted 144 | . 18 13 41 48 6 18 Peak Tracking Total 10 | . 4 7 6 5 6 10 Tactical Retreats 12 | . 2 . 1 3 2 4 Traps | -11 -10 -9 -8 -7 -7 -7 ------- Run | Yrd Mat Mat Mat Fac Low Low Traps Triggered 8 | . 1 1 4 2 . . Indirectly . | . . . . . . . Trap Hack Attempts . | . . . . . . . Triggered . | . . . . . . . Disarmed . | . . . . . . . Reprogrammed . | . . . . . . . Reused . | . . . . . . . Traps Extracted . | . . . . . . . Installed . | . . . . . . . Triggered . | . . . . . . . Machines | -11 -10 -9 -8 -7 -7 -7 ---------- Run | Yrd Mat Mat Mat Fac Low Low Machines Disabled 3 | . . 2 . 1 . . Max in Single Turn 2 | . . 2 . 1 . . Garrison Access 1 | . . . 1 . . . Machines Repaired . | . . . . . . . Machines Dismantled . | . . . . . . . Machines Sabotaged . | . . . . . . . Overloaded Fab Kills . | . . . . . . . Hacking | -11 -10 -9 -8 -7 -7 -7 --------- Run | Yrd Mat Mat Mat Fac Low Low Machines Accessed 20 | . 2 3 4 11 . . Terminals 17 | . 2 3 3 9 . . Fabricators 2 | . . . . 2 . . Repair Stations . | . . . . . . . Recycling Units . | . . . . . . . Scanalyzers . | . . . . . . . Garrison Access 1 | . . . 1 . . . Total Hacks 45 | . 4 9 10 22 . . Successful 22 | . 3 6 4 9 . . Failed 23 | . 1 3 6 13 . . Catastrophic 8 | . 1 1 3 3 . . Database Lockouts . | . . . . . . . Manual 22 | . 4 7 3 8 . . Terminals 36 | . 4 9 8 15 . . Fabricators 7 | . . . . 7 . . Repair Stations . | . . . . . . . Recycling Units . | . . . . . . . Scanalyzers . | . . . . . . . Garrison Access 2 | . . . 2 . . . Terminal Hacks 14 | . 1 5 3 5 . . Part Schematic 1 | . . . . 1 . . Prototype ID Bank 5 | . . 2 2 1 . . Open DSF 1 | . . . . 1 . . Branch Access Points 1 | . . 1 . . . . Terminal Index 2 | . . 1 . 1 . . Alert Level 1 | . . . . 1 . . Recall Reinforcements 1 | . . 1 . . . . Hauler Manifests 2 | . 1 . 1 . . . Fabricator Hacks 4 | . . . . 4 . . Network Status 1 | . . . . 1 . . Load Schematic 2 | . . . . 2 . . Build 1 | . . . . 1 . . Repair Station Hacks . | . . . . . . . Recycling Unit Hacks . | . . . . . . . Scanalyzer . | . . . . . . . Garrison Access Hacks 1 | . . . 1 . . . Seal Access 1 | . . . 1 . . . Unauthorized Hacks 3 | . 2 1 . . . . Terminals 3 | . 2 1 . . . . Botnet 3 | . 2 1 . . . . Fabricators . | . . . . . . . Repair Stations . | . . . . . . . Recycling Units . | . . . . . . . Scanalyzers . | . . . . . . . Garrison Access . | . . . . . . . Data Cores Recovered . | . . . . . . . Used . | . . . . . . . Hacking Detections 16 | . 2 2 4 8 . . Full Trace Events 5 | . 1 . . 4 . . Feedback Events 1 | . 1 . . . . . Corruption 1 | . 1 . . . . . Feedback Blocked . | . . . . . . . Robot Schematics Acquired . | . . . . . . . Robots Built . | . . . . . . . Authchips . | . . . . . . . Time . | . . . . . . . Total Robot Build Rating . | . . . . . . . Part Schematics Acquired 1 | . . . . 1 . . Parts Built 1 | . . . . 1 . . Authchips . | . . . . . . . Time 95 | . . . . 95 . . Total Part Build Rating 5 | . . . . 5 . . Parts Repaired . | . . . . . . . Time . | . . . . . . . Parts Recycled . | . . . . . . . Recycled Matter . | . . . . . . . Retrieved Matter . | . . . . . . . Retrieved Components . | . . . . . . . Parts Scanalyzed . | . . . . . . . Part Schematics Acquired . | . . . . . . . Parts Damaged . | . . . . . . . Bothacking | -11 -10 -9 -8 -7 -7 -7 ------------ Run | Yrd Mat Mat Mat Fac Low Low Used RIF Installer . | . . . . . . . Robots Hacked . | . . . . . . . Non-combat . | . . . . . . . Combat . | . . . . . . . Robot Hacks Applied . | . . . . . . . Relay Couplers Released . | . . . . . . . Fabnet Peak Effective % . | . . . . . . . Robots Rewired . | . . . . . . . Allies Hacked . | . . . . . . . Hacks Repelled . | . . . . . . . Allies | -11 -10 -9 -8 -7 -7 -7 -------- Run | Yrd Mat Mat Mat Fac Low Low Total Allies . | . . . . . . . Largest Group . | . . . . . . . Highest-Rated Group . | . . . . . . . Highest-Rated Ally . | . . . . . . . Total Orders . | . . . . . . . Ally Attacks . | . . . . . . . Total Damage . | . . . . . . . Kills . | . . . . . . . Allies Corrupted . | . . . . . . . Allies Melted . | . . . . . . . Intel | -11 -10 -9 -8 -7 -7 -7 ------- Run | Yrd Mat Mat Mat Fac Low Low Robot Analysis Total . | . . . . . . . Derelict Logs Recovered 1 | . . . . . 1 . Drone Launches . | . . . . . . . Drone Recoveries . | . . . . . . . Exploration | -11 -10 -9 -8 -7 -7 -7 ------------- Run | Yrd Mat Mat Mat Fac Low Low Turns Passed 5153 | 63 486 285 1497 2478 171 173 Spaces Moved 3445 | 52 223 205 707 1412 472 374 Core 80 | 4 . . . . . 76 Treads 1446 | . 172 . 274 1000 . . Legs 178 | . . . 178 . . . Wheels 260 | 48 51 156 5 . . . Hover . | . . . . . . . Flight 1481 | . . 49 250 412 472 298 Fastest Speed 34 | 50 100 80 109 34 34 34 Average Speed 108 | 96 146 105 139 129 34 41 Slowest Speed 600 | 100 160 200 600 240 34 100 Overloaded Moves . | . . . . . . . Propulsion Burnouts . | . . . . . . . Robots Hopped 6 | . . . . 2 . 4 Cave-ins Triggered . | . . . . . . . Exploration Rate (%) 38 | 3 44 25 62 34 55 49 Regions Visited 6 Branch Regions 2 Pre-discovered Areas . | . . . . . . . Known Exits Taken 1 | . . . . 1 . . Unknown Exits Taken 5 | 1 1 1 1 . 1 . Scrap Searched 1 | . . . . . 1 . Spaces Dug 3 | . . . . 3 . . Terrain Destroyed 50 | . . 47 . 3 . . Melee 3 | . . . . 3 . . Projectile . | . . . . . . . AOE 47 | . . 47 . . . . Terrain Rammed . | . . . . . . . Walls Destroyed . | . . . . . . . Machines Disabled . | . . . . . . . Actions | -11 -10 -9 -8 -7 -7 -7 --------- Run | Yrd Mat Mat Mat Fac Low Low Total 4355 | 62 290 244 1055 1844 475 385 Wait 379 | . . 4 175 197 . 3 Move 3428 | 51 222 204 707 1407 471 366 Hop 6 | . . . . 2 . 4 Pick Up 29 | 3 4 1 16 5 . . Fast Attach 63 | 7 3 6 23 24 . . Attach 25 | . 3 3 5 11 . 3 Detach 12 | . 1 1 4 4 . 2 Swap 11 | . . 1 7 3 . . Drop 36 | 1 . . 19 14 . 2 Fire 329 | . 57 24 97 151 . . Melee 12 | . . . . 3 4 5 Ram 1 | . . . . 1 . . Kick 1 | . . . 1 . . . Crush 5 | . . . 1 4 . . Escape Stasis 18 | . . . . 18 . . Rewire . | . . . . . . . Trap . | . . . . . . . Miscellaneous . | . . . . . . . Route ------- -11/Scrapyard -10/Materials -9/Materials (discovered 5 exits: *Mat / *Min x2 / Sto x2) -8/Materials -7/Factory -7/Lower Caves -7/Lower Caves History --------- Turn | Location | Event 16 | -11/Scrapyard | Discovered new exit (range 16) 64 | -11/Scrapyard | Entered Materials 316 | -10/Materials | Build established: Mutant 387 | -10/Materials | Discovered new exit (range 5) 433 | -10/Materials | Core integrity fell below 50% 550 | -10/Materials | Entered another Materials area 550 | -9/Materials | Evolved 2 slots: Utility x2 593 | -9/Materials | Discovered new exit (range 16) 612 | -9/Materials | Identified exit to Mines 612 | -9/Materials | Identified exit to Storage 722 | -9/Materials | Lost 4 parts (1p2n1w) 798 | -9/Materials | Discovered new exit (range 5) 799 | -9/Materials | Lost 3 parts (2n1w) 835 | -9/Materials | Entered another Materials area 835 | -8/Materials | Evolved 2 slots: Propulsion x2 1007 | -8/Materials | Build established: Scavenger-Mutant 1653 | -8/Materials | Lost 3 parts (1p2n) 2328 | -8/Materials | Discovered new exit (range 4) 2332 | -8/Materials | Entered Factory 2332 | -7/Factory | Evolved 2 slots: Utility x2 2598 | -7/Factory | Discovered new exit (range 15) 2620 | -7/Factory | Identified exit to Lower Caves 2864 | -7/Factory | Lost 3 parts (1n1u1w) 4350 | -7/Factory | Build established: Mutant 4631 | -7/Factory | Lost 3 parts (1n2w) 4786 | -7/Factory | Fabricated Imp. Hacking Suite (x1) 4810 | -7/Factory | Entered Lower Caves 4884 | -7/Lower Caves | Build established: Scavenger-Mutant 4977 | -7/Lower Caves | Discovered new exit (range 10) 4979 | -7/Lower Caves | Learned Factory trap positions 4981 | -7/Lower Caves | Entered another Lower Caves area 5023 | -7/Lower Caves | Encountered a Warlord checkpoint 5098 | -7/Lower Caves | Core integrity fell below 50% 5126 | -7/Lower Caves | Core integrity fell below 20% 5154 | -7/Lower Caves | Destroyed by S-27 Virus with Autogun Last Messages --------------- 04977_ EXIT=FOUND 04979_ Acquired derelict log, extracted data. Data stored: Factory trap records. LOCATION=UNKNOWN GOAL=ESCAPE 05003_ Flight Unit destroyed. 05003_ Dropped Hvy. Flail. 05003_ Flight Unit destroyed. 05003_ Dropped Recalibrator. 05005_ Knocked back. 05023_ X7-SAZ(M): "You haven't seen any Assembled, have you?" 05091_ C-30 ARC bursts open, deploying its payload. 05091_ S-27 Virus unfolds itself. 05098_ Flight Unit destroyed. 05099_ Transmission Jammer destroyed. 05118_ S-27 Virus destroyed. 05123_ VTOL Module fries itself beyond repair. 05123_ Acquired 27 matter. 05127_ Mic. Nuclear Core destroyed. 05153_ S-27 Virus destroyed. Map ----- +----------------------------------------------------+ | ?????????????????????????????????????????????????? | | ?????????????????????????????????????????????????? | | ?????????????????????????????????????????????????? | | ????????????????????????????????????????????###### | | ?????????????????????????????????#####??????# | | ????????????????????????????????## ???##### | | ?????????????????????????####???# ???# ## | | ?????????????????????????# #?## ???## ### | | ???????????????????#??????# ## ?????## #?? | | ???????????????????# ??????# #??????### #?? | | ???????????????????# #?????# ##???????# #?? | | ??????????????????## ##???# ##??????# #?? | | ??????????????????# #???# #??????# #?? | | ??????????????????# #### #?????## ### | | ????????????????????# ####### # | | ?????????????????????# | | ??????????????????????# | | ??????????????????????## ## ######"+++###### | | ???????????????????????#????# #??????????????# | | ????????????????????????????# #??????????????# | | ????????????????????????##### #??????????????# | | ???????????????????????## #??????????????# | | ??????????????????????## #??????????????# | | ??????????????????????#s = #??????????????# | | ??????????????????????# ss### +??????????????+ | | ??????????????????????# @#?# +??????????????+ | | ??????????????????????## #?# #??????????????# | | ???????????????????????####?# #??????????????# | | ????????????????????????????# #??????????????# | | ????????????????????????????# #??????????????# | | ????????????????????????????? #??????????????# | | ????????????????????????????? #??????????????# | | ????????????????????????????? ################ | | ????????????????????????????? "%" # | | ????????????????????????????? " # | | ????????????????????????????? ???### #### | | ????????????????????????????????????## #??? | | ???????????????????????????????????# ##?? | | ??????????????????????????????????# ### ### | | ???????????????????????????????? ???# # | | ??????????????????????????????? #???## # | | ?????????????###???????????????? ?????# # | | ?????????????# ##????????????????????????## # | | ?????????????# #?????????????????????????#### | | ?????????????# #????????????????????????????## | | ?????????????# ##????????????????????????????## # | | ?????????????## ##????????????????????????????### | | ??????????????## ##?????????????????????????????? | | ???????????????# ####??????????????????????????? | | ??????????????## ##????????????????????????## | +----------------------------------------------------+ Best States ------------- Heat Dissipation 55 Energy Generation 18 Energy Capacity 310 Matter Stores 300 Matter Capacity 300 Sight Range 16 Terrain Scan Density 10 Jamming Range 12 Additional Mass Support 9 Armor Coverage 450 Utility Shielding 33 Weapon Cycling 15 Evasion (%) 71 Targeting Accuracy 8 Recoil Reduction 4 Item Schematics ----------------- Imp. Hacking Suite | -7/Factory | Hacked Robot Schematics ------------------ None Fabricated ------------ Imp. Hacking Suite | x1 | -7/Factory Alien Tech Used ----------------- None Achievements -------------- None Challenges ------------ None Game ------ Seed FlightImprinterNetwork Manual? 0 Play Time 00:41:55 Cumulative 56.0 hours Start 2024.06.11 @ 16:38:16 End 2024.06.11 @ 17:24:28 Sessions 1 Manual Loads 0 Difficulty Rogue Special Mode None Game No. 73 Rogue 71 Adventurer 0 Explorer 2 Win Type - Total 3 Types 2/0/0/1/0/0/0/0/0 Lore% 31 Gallery% 56 Achievement% 46 Wizard Run 0 Options --------- Layout 0 ASCII 0 Keyboard 0 Movement Numpad Keybinds 0 Fullscreen 2 Font 18/SmallcapsGlow Map View 76x50 Zoom Use 0% Tactical HUD 1 Map Filters NONE Filters NONE Steam 1 RUN: fe0dbc4f-4584-4784-a1c0-a4e521a8f75a